Workbook

Sheet Worksheet
D1: Complete these monthly payslips and calculate the net pay
D2: This is Mohammed Thomson's monthly wage slip. • Mohammed is paid a basic hourly wage of £18.92, has monthly tax allowances of £844, and pays tax at the standard rate of 20%. • Mohammed pays 11.9% of his gross monthly pay over £611 towards his National Insurance. • 6.1% of his gross monthly pay also goes into his pension fund. Calculate Mohammed's net monthly pay.
D3: Name | E3: Employee number | F3: Month | G3: Date | H3: Tax Code | I3: NI Number
D4: Mohammed Thomson | E4: 170927 | F4: 3 | G4: 2024-05-30 | H4: S844L | I4: MH 89 41 64 A
A6: Variables | D6: MONTHLY PAY | H6: MONTHLY DEDUCTIONS
A7: SHOW ANSWERS | B7: FALSE | E7: Hourly wage | F7: Hours worked | G7: TOTAL | I7: TOTAL | J7: 8
A8: Calculate tax? | B8: TRUE | D8: Basic hours | E8: 18.92 | F8: 108 | G8: 2043.36 | H8: Tax | I8: 395.962 | J8: 9
A9: Calculate National Insurance? | B9: TRUE | D9: Overtime (time-and-a-quarter) | E9: 23.65 | F9: 33 | G9: 780.45 | H9: National Insurance | I9: 254.8 | J9: 10
A10: Calculate pension? | B10: TRUE | H10: Pension | I10: 172.25241
A11: Calculate commission? | B11: FALSE | F11: GROSS MONTHLY PAY | G11: 2823.81 | H11: TOTAL DEDUCTIONS | I11: 823.01441
A13: Calculate overtime? | B13: TRUE | H13: NET PAY | I13: 2000.79559
D14: This is Bradley Wood's monthly wage slip. • Bradley is paid a basic hourly wage of £10.80, has monthly tax allowances of £1012, and pays tax at the standard rate of 20%. • Bradley pays 10.8% of his gross monthly pay over £683 towards his National Insurance. • 5.8% of his gross monthly pay also goes into his pension fund. Calculate Bradley's net monthly pay.
D15: Name | E15: Employee number | F15: Month | G15: Date | H15: Tax Code | I15: NI Number
D16: Bradley Wood | E16: 8787 | F16: 5 | G16: 2024-07-05 | H16: S1012L | I16: SO 86 81 91 D
D18: MONTHLY PAY | H18: MONTHLY DEDUCTIONS | J18: 21
E19: Hourly wage | F19: Hours worked | G19: TOTAL | I19: TOTAL | J19: 22
D20: Basic hours | E20: 10.8 | F20: 89 | G20: 961.2 | H20: Tax | I20: 132.4 | J20: 20
D21: Overtime (time-and-a-half) | E21: 16.2 | F21: 14 | G21: 226.8 | H21: National Insurance | I21: 150.6 | J21: 21
D22: Overtime (time-and-a-quarter) | E22: 13.5 | F22: 36 | G22: 486 | H22: Pension | I22: 97.092
F23: GROSS MONTHLY PAY | G23: 1674 | H23: TOTAL DEDUCTIONS | I23: 380.092
H25: NET PAY | I25: 1293.908
D26: This is Danielle Jones's monthly wage slip. • Danielle is paid a basic hourly wage of £16.52, has monthly tax allowances of £1165, and pays tax at the standard rate of 20%. • Danielle pays 10.9% of her gross monthly pay over £531 towards her National Insurance. • 6.8% of her gross monthly pay also goes into her pension fund. Calculate Danielle's net monthly pay.
D27: Name | E27: Employee number | F27: Month | G27: Date | H27: Tax Code | I27: NI Number
D28: Danielle Jones | E28: 403179 | F28: 3 | G28: 2024-05-27 | H28: S1165L | I28: ZY 58 75 76 B
D30: MONTHLY PAY | H30: MONTHLY DEDUCTIONS
E31: Hourly wage | F31: Hours worked | G31: TOTAL | I31: TOTAL | J31: 33
D32: Basic hours | E32: 16.52 | F32: 89 | G32: 1470.28 | H32: Tax | I32: 371.632 | J32: 32
D33: Overtime (double time) | E33: 33.04 | F33: 47 | G33: 1552.88 | H33: National Insurance | I33: 272.1 | J33: 33
H34: Pension | I34: 205.57488
F35: GROSS MONTHLY PAY | G35: 3023.16 | H35: TOTAL DEDUCTIONS | I35: 849.30688
H37: NET PAY | I37: 2173.85312

Sheet SYSTEM FORMULAE 2
D2: =CONCATENATE("This is ",A4," ",A5,"'s monthly wage slip. "," • ",A4," is paid a basic hourly wage of £",TEXT(E8,"#.00"),IF(Worksheet!$B$8,CONCATENATE(", has monthly tax allowances of £",VALUE(LEFT(RIGHT(H4,LEN(H4)-1),LEN(RIGHT(H4,LEN(H4)-1))-1)),", and pays tax at the standard rate of 20%. "),". "),CONCATENATE(IF(Worksheet!$B$11,CONCATENATE("• ",A4," is also paid ",A6,"% commission on ",IF(B4="M","his",IF(B4="F","her","their"))," sales. "),"")),CONCATENATE(IF(Worksheet!$B$9,CONCATENATE("• ",A4," pays ",B11,"% of ",IF(B4="M","his",IF(B4="F","her","their"))," gross monthly pay over £",B10," towards ",IF(B4="M","his",IF(B4="F","her","their"))," National Insurance. "),"")),CONCATENATE(IF(Worksheet!$B$10,CONCATENATE("• ",A11,"% of ",IF(B4="M","his",IF(B4="F","her","their"))," gross monthly pay also goes into ",IF(B4="M","his",IF(B4="F","her","their"))," pension fund. "),"")),CONCATENATE("Calculate ",IF(Worksheet!$B$11,"the",CONCATENATE(A4,"'s"))," net monthly pay",IF(Worksheet!$B$11,CONCATENATE(" in a month where ",A4,"'s sales are £",A7,"."),"."))) -> This is Henry Stewart's monthly wage slip. • Henry is paid a basic hourly wage of £10.86, has monthly tax allowances of £1391, and pays tax at the standard rate of 20%. • Henry pays 6.1% of his gross monthly pay over £528 towards his National Insurance. • 5% of his gross monthly pay also goes into his pension fund. Calculate Henry's net monthly pay.
A3: =RANDBETWEEN(1,200) -> 56 | D3: Name | E3: Employee number | F3: Month | G3: Date | H3: Tax Code | I3: NI Number
A4: =INDEX('SYSTEM FORMULAE'!A$2:A$201,A3) -> Henry | B4: =INDEX('SYSTEM FORMULAE'!B$2:B$201,A3) -> M | D4: =CONCATENATE(A4," ",A5) -> Henry Stewart | E4: =IF(RAND()<0.3,RANDBETWEEN(1,99),IF(RAND()<0.35,RANDBETWEEN(100,9999),RANDBETWEEN(10000,999999))) -> 267479 | F4: =MOD(MONTH(G4)+9,12)+1 -> 2 | G4: =TODAY()+RANDBETWEEN(-50,50) -> 2024-04-29 | H4: =CONCATENATE("S",RANDBETWEEN(800,1400),"L") -> S1391L | I4: =CONCATENATE(CHOOSE(RANDBETWEEN(1,20),"A","B","C","E","G","H","J","K","L","M","N","O","P","R","S","T","W","X","Y","Z"),CHOOSE(RANDBETWEEN(1,20),"A","B","C","E","G","H","J","K","L","M","N","O","P","R","S","T","W","X","Y","Z")," ",RANDBETWEEN(1,9),RANDBETWEEN(1,9)," ",RANDBETWEEN(1,9),RANDBETWEEN(1,9)," ",RANDBETWEEN(1,9),RANDBETWEEN(1,9)," ",CHOOSE(RANDBETWEEN(1,4),"A","B","C","D")) -> JA 93 22 25 B
A5: =INDEX('SYSTEM FORMULAE'!C$2:C$51,RANDBETWEEN(1,50)) -> Stewart
A6: =RANDBETWEEN(7,15)/2 -> 6.5 | D6: MONTHLY PAY | H6: MONTHLY DEDUCTIONS | J6: =IF(D10="","",3*ROW(G8)+3-J7-J8) -> 
A7: =(RANDBETWEEN(12,100)*10000+RANDBETWEEN(1,9)*1000)/10 -> 65400 | E7: Hourly wage | F7: Hours worked | G7: TOTAL | I7: TOTAL | J7: =IF(D10="",RANDBETWEEN(ROW(G8),ROW(G8)+1),RANDBETWEEN(ROW(G8),ROW(G8)+2)) -> 8
D8: Basic hours | E8: =RANDBETWEEN(430,1200)/50 -> 10.86 | F8: =RANDBETWEEN(40,140) -> 112 | G8: =E8*F8 -> 1216.32 | H8: Tax | I8: =(G11-VALUE(LEFT(RIGHT(H4,LEN(H4)-1),LEN(RIGHT(H4,LEN(H4)-1))-1)))*0.2 -> 118.19 | J8: =IF(D10="",IF(J7=ROW(G8),ROW(G8)+1,ROW(G8)),IF(J7=ROW(G8),RANDBETWEEN(ROW(G8)+1,ROW(G8)+2),IF(J7=ROW(G8)+2,RANDBETWEEN(ROW(G8),ROW(G8)+1),CHOOSE(RANDBETWEEN(1,2),ROW(G8),ROW(G8)+2)))) -> 9
A9: =RANDBETWEEN(1,IF(RAND()<0.3,3,2)) -> 2 | D9: =CHOOSE(A9,"Overtime (double time)","Overtime (time-and-a-half)","Overtime (time-and-a-quarter)") -> Overtime (time-and-a-half) | E9: =CHOOSE(A9,2,1.5,1.25)*E8 -> 16.29 | F9: =RANDBETWEEN(4,50) -> 47 | G9: =E9*F9 -> 765.63 | H9: National Insurance | I9: =INT(0.09*G11)+0.1*RANDBETWEEN(0,9) -> 178.7 | J9: =RANDBETWEEN(ROW(G8),ROW(G8)+2) -> 9
A10: =IF(A9=1,RANDBETWEEN(2,3),IF(A9=3,RANDBETWEEN(1,2),CHOOSE(RANDBETWEEN(1,2),1,3))) -> 3 | B10: =RANDBETWEEN(500,VALUE(LEFT(RIGHT(H4,LEN(H4)-1),LEN(RIGHT(H4,LEN(H4)-1))-1))) -> 528 | D10: =IF(Worksheet!$B$11,"Commission",IF(AND(RAND()<0.5,Worksheet!$B$13),CHOOSE(A10,"Overtime (double time)","Overtime (time-and-a-half)","Overtime (time-and-a-quarter)"),"")) ->  | E10: =IF(LEFT(D10,4)="Comm","-",IF(D10="","",CHOOSE(A10,2,1.5,1.25)*E8)) ->  | F10: =IF(LEFT(D10,4)="Comm","-",IF(D10="","",RANDBETWEEN(4,50))) ->  | G10: =IF(D10="","",IF(LEFT(D10,4)="Comm",A6/100*A7,E10*F10)) ->  | H10: Pension | I10: =G11*A11/100 -> 99.0975
A11: =RANDBETWEEN(30,70)/10 -> 5 | B11: =RANDBETWEEN(60,120)/10 -> 6.1 | F11: GROSS MONTHLY PAY | G11: =SUM(G8:G10) -> 1981.95 | H11: TOTAL DEDUCTIONS | I11: =SUM(I8:I10) -> 395.9875
H13: NET PAY | I13: =G11-I11 -> 1585.9625
D14: =CONCATENATE("This is ",A16," ",A17,"'s monthly wage slip. "," • ",A16," is paid a basic hourly wage of £",TEXT(E20,"#.00"),IF(Worksheet!$B$8,CONCATENATE(", has monthly tax allowances of £",VALUE(LEFT(RIGHT(H16,LEN(H16)-1),LEN(RIGHT(H16,LEN(H16)-1))-1)),", and pays tax at the standard rate of 20%. "),". "),CONCATENATE(IF(Worksheet!$B$11,CONCATENATE("• ",A16," is also paid ",A18,"% commission on ",IF(B16="M","his",IF(B16="F","her","their"))," sales. "),"")),CONCATENATE(IF(Worksheet!$B$9,CONCATENATE("• ",A16," pays ",B23,"% of ",IF(B16="M","his",IF(B16="F","her","their"))," gross monthly pay over £",B22," towards ",IF(B16="M","his",IF(B16="F","her","their"))," National Insurance. "),"")),CONCATENATE(IF(Worksheet!$B$10,CONCATENATE("• ",A23,"% of ",IF(B16="M","his",IF(B16="F","her","their"))," gross monthly pay also goes into ",IF(B16="M","his",IF(B16="F","her","their"))," pension fund. "),"")),CONCATENATE("Calculate ",IF(Worksheet!$B$11,"the",CONCATENATE(A16,"'s"))," net monthly pay",IF(Worksheet!$B$11,CONCATENATE(" in a month where ",A16,"'s sales are £",A19,"."),"."))) -> This is Mia Clark's monthly wage slip. • Mia is paid a basic hourly wage of £16.54, has monthly tax allowances of £1077, and pays tax at the standard rate of 20%. • Mia pays 11.7% of her gross monthly pay over £1012 towards her National Insurance. • 6.5% of her gross monthly pay also goes into her pension fund. Calculate Mia's net monthly pay.
A15: =RANDBETWEEN(1,200) -> 125 | D15: Name | E15: Employee number | F15: Month | G15: Date | H15: Tax Code | I15: NI Number
A16: =INDEX('SYSTEM FORMULAE'!A$2:A$201,A15) -> Mia | B16: =INDEX('SYSTEM FORMULAE'!B$2:B$201,A15) -> F | D16: =CONCATENATE(A16," ",A17) -> Mia Clark | E16: =IF(RAND()<0.3,RANDBETWEEN(1,99),IF(RAND()<0.35,RANDBETWEEN(100,9999),RANDBETWEEN(10000,999999))) -> 9229 | F16: =MOD(MONTH(G16)+9,12)+1 -> 4 | G16: =TODAY()+RANDBETWEEN(-50,50) -> 2024-06-22 | H16: =CONCATENATE("S",RANDBETWEEN(800,1400),"L") -> S1077L | I16: =CONCATENATE(CHOOSE(RANDBETWEEN(1,20),"A","B","C","E","G","H","J","K","L","M","N","O","P","R","S","T","W","X","Y","Z"),CHOOSE(RANDBETWEEN(1,20),"A","B","C","E","G","H","J","K","L","M","N","O","P","R","S","T","W","X","Y","Z")," ",RANDBETWEEN(1,9),RANDBETWEEN(1,9)," ",RANDBETWEEN(1,9),RANDBETWEEN(1,9)," ",RANDBETWEEN(1,9),RANDBETWEEN(1,9)," ",CHOOSE(RANDBETWEEN(1,4),"A","B","C","D")) -> RW 82 92 51 B
A17: =INDEX('SYSTEM FORMULAE'!C$2:C$51,RANDBETWEEN(1,50)) -> Clark
A18: =RANDBETWEEN(7,15)/2 -> 4 | D18: MONTHLY PAY | H18: MONTHLY DEDUCTIONS | J18: =IF(D22="","",3*ROW(G20)+3-J19-J20) -> 21
A19: =(RANDBETWEEN(12,100)*10000+RANDBETWEEN(1,9)*1000)/10 -> 61800 | E19: Hourly wage | F19: Hours worked | G19: TOTAL | I19: TOTAL | J19: =IF(D22="",RANDBETWEEN(ROW(G20),ROW(G20)+1),RANDBETWEEN(ROW(G20),ROW(G20)+2)) -> 20
D20: Basic hours | E20: =RANDBETWEEN(430,1200)/50 -> 16.54 | F20: =RANDBETWEEN(40,140) -> 41 | G20: =E20*F20 -> 678.14 | H20: Tax | I20: =(G23-VALUE(LEFT(RIGHT(H16,LEN(H16)-1),LEN(RIGHT(H16,LEN(H16)-1))-1)))*0.2 -> 65.78 | J20: =IF(D22="",IF(J19=ROW(G20),ROW(G20)+1,ROW(G20)),IF(J19=ROW(G20),RANDBETWEEN(ROW(G20)+1,ROW(G20)+2),IF(J19=ROW(G20)+2,RANDBETWEEN(ROW(G20),ROW(G20)+1),CHOOSE(RANDBETWEEN(1,2),ROW(G20),ROW(G20)+2)))) -> 22
A21: =RANDBETWEEN(1,IF(RAND()<0.3,3,2)) -> 2 | D21: =CHOOSE(A21,"Overtime (double time)","Overtime (time-and-a-half)","Overtime (time-and-a-quarter)") -> Overtime (time-and-a-half) | E21: =CHOOSE(A21,2,1.5,1.25)*E20 -> 24.81 | F21: =RANDBETWEEN(4,50) -> 21 | G21: =E21*F21 -> 521.01 | H21: National Insurance | I21: =INT(0.09*G23)+0.1*RANDBETWEEN(0,9) -> 126.6 | J21: =RANDBETWEEN(ROW(G20),ROW(G20)+2) -> 20
A22: =IF(A21=1,RANDBETWEEN(2,3),IF(A21=3,RANDBETWEEN(1,2),CHOOSE(RANDBETWEEN(1,2),1,3))) -> 3 | B22: =RANDBETWEEN(500,VALUE(LEFT(RIGHT(H16,LEN(H16)-1),LEN(RIGHT(H16,LEN(H16)-1))-1))) -> 1012 | D22: =IF(Worksheet!$B$11,"Commission",IF(AND(RAND()<0.5,Worksheet!$B$13),CHOOSE(A22,"Overtime (double time)","Overtime (time-and-a-half)","Overtime (time-and-a-quarter)"),"")) -> Overtime (time-and-a-quarter) | E22: =IF(LEFT(D22,4)="Comm","-",IF(D22="","",CHOOSE(A22,2,1.5,1.25)*E20)) -> 20.675 | F22: =IF(LEFT(D22,4)="Comm","-",IF(D22="","",RANDBETWEEN(4,50))) -> 10 | G22: =IF(D22="","",IF(LEFT(D22,4)="Comm",A18/100*A19,E22*F22)) -> 206.75 | H22: Pension | I22: =G23*A23/100 -> 91.3835
A23: =RANDBETWEEN(30,70)/10 -> 6.5 | B23: =RANDBETWEEN(60,120)/10 -> 11.7 | F23: GROSS MONTHLY PAY | G23: =SUM(G20:G22) -> 1405.9 | H23: TOTAL DEDUCTIONS | I23: =SUM(I20:I22) -> 283.7635
H25: NET PAY | I25: =G23-I23 -> 1122.1365
D26: =CONCATENATE("This is ",A28," ",A29,"'s monthly wage slip. "," • ",A28," is paid a basic hourly wage of £",TEXT(E32,"#.00"),IF(Worksheet!$B$8,CONCATENATE(", has monthly tax allowances of £",VALUE(LEFT(RIGHT(H28,LEN(H28)-1),LEN(RIGHT(H28,LEN(H28)-1))-1)),", and pays tax at the standard rate of 20%. "),". "),CONCATENATE(IF(Worksheet!$B$11,CONCATENATE("• ",A28," is also paid ",A30,"% commission on ",IF(B28="M","his",IF(B28="F","her","their"))," sales. "),"")),CONCATENATE(IF(Worksheet!$B$9,CONCATENATE("• ",A28," pays ",B35,"% of ",IF(B28="M","his",IF(B28="F","her","their"))," gross monthly pay over £",B34," towards ",IF(B28="M","his",IF(B28="F","her","their"))," National Insurance. "),"")),CONCATENATE(IF(Worksheet!$B$10,CONCATENATE("• ",A35,"% of ",IF(B28="M","his",IF(B28="F","her","their"))," gross monthly pay also goes into ",IF(B28="M","his",IF(B28="F","her","their"))," pension fund. "),"")),CONCATENATE("Calculate ",IF(Worksheet!$B$11,"the",CONCATENATE(A28,"'s"))," net monthly pay",IF(Worksheet!$B$11,CONCATENATE(" in a month where ",A28,"'s sales are £",A31,"."),"."))) -> This is Charlie Hughes's monthly wage slip. • Charlie is paid a basic hourly wage of £17.78, has monthly tax allowances of £920, and pays tax at the standard rate of 20%. • Charlie pays 11.5% of his gross monthly pay over £683 towards his National Insurance. • 6.3% of his gross monthly pay also goes into his pension fund. Calculate Charlie's net monthly pay.
A27: =RANDBETWEEN(1,200) -> 35 | D27: Name | E27: Employee number | F27: Month | G27: Date | H27: Tax Code | I27: NI Number
A28: =INDEX('SYSTEM FORMULAE'!A$2:A$201,A27) -> Charlie | B28: =INDEX('SYSTEM FORMULAE'!B$2:B$201,A27) -> M | D28: =CONCATENATE(A28," ",A29) -> Charlie Hughes | E28: =IF(RAND()<0.3,RANDBETWEEN(1,99),IF(RAND()<0.35,RANDBETWEEN(100,9999),RANDBETWEEN(10000,999999))) -> 848870 | F28: =MOD(MONTH(G28)+9,12)+1 -> 4 | G28: =TODAY()+RANDBETWEEN(-50,50) -> 2024-06-11 | H28: =CONCATENATE("S",RANDBETWEEN(800,1400),"L") -> S920L | I28: =CONCATENATE(CHOOSE(RANDBETWEEN(1,20),"A","B","C","E","G","H","J","K","L","M","N","O","P","R","S","T","W","X","Y","Z"),CHOOSE(RANDBETWEEN(1,20),"A","B","C","E","G","H","J","K","L","M","N","O","P","R","S","T","W","X","Y","Z")," ",RANDBETWEEN(1,9),RANDBETWEEN(1,9)," ",RANDBETWEEN(1,9),RANDBETWEEN(1,9)," ",RANDBETWEEN(1,9),RANDBETWEEN(1,9)," ",CHOOSE(RANDBETWEEN(1,4),"A","B","C","D")) -> LL 25 61 42 B
A29: =INDEX('SYSTEM FORMULAE'!C$2:C$51,RANDBETWEEN(1,50)) -> Hughes
A30: =RANDBETWEEN(7,15)/2 -> 7 | D30: MONTHLY PAY | H30: MONTHLY DEDUCTIONS | J30: =IF(D34="","",3*ROW(G32)+3-J31-J32) -> 
A31: =(RANDBETWEEN(12,100)*10000+RANDBETWEEN(1,9)*1000)/10 -> 97900 | E31: Hourly wage | F31: Hours worked | G31: TOTAL | I31: TOTAL | J31: =IF(D34="",RANDBETWEEN(ROW(G32),ROW(G32)+1),RANDBETWEEN(ROW(G32),ROW(G32)+2)) -> 32
D32: Basic hours | E32: =RANDBETWEEN(430,1200)/50 -> 17.78 | F32: =RANDBETWEEN(40,140) -> 76 | G32: =E32*F32 -> 1351.28 | H32: Tax | I32: =(G35-VALUE(LEFT(RIGHT(H28,LEN(H28)-1),LEN(RIGHT(H28,LEN(H28)-1))-1)))*0.2 -> 342.288 | J32: =IF(D34="",IF(J31=ROW(G32),ROW(G32)+1,ROW(G32)),IF(J31=ROW(G32),RANDBETWEEN(ROW(G32)+1,ROW(G32)+2),IF(J31=ROW(G32)+2,RANDBETWEEN(ROW(G32),ROW(G32)+1),CHOOSE(RANDBETWEEN(1,2),ROW(G32),ROW(G32)+2)))) -> 33
A33: =RANDBETWEEN(1,IF(RAND()<0.3,3,2)) -> 1 | D33: =CHOOSE(A33,"Overtime (double time)","Overtime (time-and-a-half)","Overtime (time-and-a-quarter)") -> Overtime (double time) | E33: =CHOOSE(A33,2,1.5,1.25)*E32 -> 35.56 | F33: =RANDBETWEEN(4,50) -> 36 | G33: =E33*F33 -> 1280.16 | H33: National Insurance | I33: =INT(0.09*G35)+0.1*RANDBETWEEN(0,9) -> 236.3 | J33: =RANDBETWEEN(ROW(G32),ROW(G32)+2) -> 32
A34: =IF(A33=1,RANDBETWEEN(2,3),IF(A33=3,RANDBETWEEN(1,2),CHOOSE(RANDBETWEEN(1,2),1,3))) -> 2 | B34: =RANDBETWEEN(500,VALUE(LEFT(RIGHT(H28,LEN(H28)-1),LEN(RIGHT(H28,LEN(H28)-1))-1))) -> 683 | D34: =IF(Worksheet!$B$11,"Commission",IF(AND(RAND()<0.5,Worksheet!$B$13),CHOOSE(A34,"Overtime (double time)","Overtime (time-and-a-half)","Overtime (time-and-a-quarter)"),"")) ->  | E34: =IF(LEFT(D34,4)="Comm","-",IF(D34="","",CHOOSE(A34,2,1.5,1.25)*E32)) ->  | F34: =IF(LEFT(D34,4)="Comm","-",IF(D34="","",RANDBETWEEN(4,50))) ->  | G34: =IF(D34="","",IF(LEFT(D34,4)="Comm",A30/100*A31,E34*F34)) ->  | H34: Pension | I34: =G35*A35/100 -> 165.78072
A35: =RANDBETWEEN(30,70)/10 -> 6.3 | B35: =RANDBETWEEN(60,120)/10 -> 11.5 | F35: GROSS MONTHLY PAY | G35: =SUM(G32:G34) -> 2631.44 | H35: TOTAL DEDUCTIONS | I35: =SUM(I32:I34) -> 744.36872
H37: NET PAY | I37: =G35-I35 -> 1887.07128

Sheet SYSTEM FORMULAE
A1: Names | B1: 1998 baby names - http://www.statistics.gov.uk/statbase/Product.asp?vlnk=15282
A2: Jack | B2: =IF(RAND()<0.97,"M","N") -> M | C2: Smith
A3: Thomas | B3: =IF(RAND()<0.97,"M","N") -> M | C3: Wilson
A4: James | B4: M | C4: Jones
A5: Daniel | B5: M | C5: Campbell
A6: Josh | B6: M | C6: Williams
A7: Matthew | B7: M | C7: Brown
A8: Samuel | B8: M | C8: Taylor
A9: Callum | B9: M | C9: Kelly
A10: Joseph | B10: M | C10: Davies
A11: Jordan | B11: M | C11: Johnston
A12: Connor | B12: M | C12: Evans
A13: Ryan | B13: M | C13: Robertson
A14: Luke | B14: M | C14: Moore
A15: William | B15: M | C15: Thomas
A16: Harry | B16: M | C16: Thomson
A17: Ben | B17: M | C17: Roberts
A18: George | B18: M | C18: Johnson
A19: Lewis | B19: M | C19: Smyth
A20: Alexander | B20: M | C20: Lewis
A21: Oliver | B21: M | C21: Stewart
A22: Adam | B22: M | C22: Anderson
A23: Jake | B23: M | C23: Hughes
A24: Michael | B24: M | C24: Scott
A25: Liam | B25: M | C25: Wright
A26: Nathan | B26: M | C26: Docherty
A27: Kieran | B27: M | C27: Murray
A28: Jacob | B28: M | C28: MacDonald
A29: Cameron | B29: M | C29: Reid
A30: Ben | B30: M | C30: Taylor
A31: Mohammed | B31: M | C31: Clark
A32: Aaron | B32: M | C32: Ross
A33: Christopher | B33: M | C33: Young
A34: Bradley | B34: M | C34: Mitchell
A35: Jamie | B35: M | C35: Watson
A36: Charlie | B36: M | C36: Paterson
A37: Brandon | B37: M | C37: Morrison
A38: Robert | B38: M | C38: Jackson
A39: Kyle | B39: M | C39: Wood
A40: David | B40: M | C40: Hall
A41: Owen | B41: M | C41: Green
A42: Charles | B42: M | C42: White
A43: Andrew | B43: M | C43: Walker
A44: Reece | B44: M | C44: Carlyle
A45: Edward | B45: N | C45: Forbes
A46: Dylan | B46: M | C46: Glen
A47: Alex | B47: M | C47: Davidson
A48: Ethan | B48: M | C48: McDonald
A49: Jonathan | B49: M | C49: McGrath
A50: Sam | B50: M | C50: MacInnes
A51: Louis | B51: M | C51: Roberts
A52: Max | B52: M | C52: Cook
A53: Dominic | B53: M
A54: John | B54: M
A55: Ashley | B55: M
A56: Rhys | B56: M
A57: Henry | B57: M
A58: Conor | B58: M
A59: Joe | B59: M
A60: Tyler | B60: M
A61: Scott | B61: M
A62: Sean | B62: M
A63: Nick | B63: M
A64: Ross | B64: M
A65: Morgan | B65: M
A66: Elliot | B66: M
A67: Patrick | B67: =IF(RAND()<0.97,"M","N") -> M
A68: Peter | B68: M
A69: Jo | B69: N
A70: Mark | B70: M
A71: Stephen | B71: M
A72: Alfie | B72: M
A73: Harrison | B73: M
A74: Lee | B74: M
A75: Anthony | B75: M
A76: Mitchell | B76: M
A77: Joel | B77: M
A78: Toby | B78: M
A79: Paul | B79: M
A80: Jay | B80: M
A81: Jason | B81: M
A82: Aidan | B82: M
A83: Richard | B83: M
A84: Mohammad | B84: M
A85: Isaac | B85: M
A86: Declan | B86: M
A87: Josh | B87: M
A88: Steven | B88: M
A89: Marcus | B89: M
A90: Muhammad | B90: M
A91: Elliott | B91: M
A92: Harvey | B92: M
A93: Tom | B93: M
A94: Christian | B94: M
A95: Kane | B95: M
A96: Shane | B96: M
A97: Leon | B97: M
A98: Shaun | B98: M
A99: Corey | B99: N
A100: Ellis | B100: M
A101: Kai | B101: N
A102: Natalie | B102: =IF(RAND()<0.97,"F","N") -> F
A103: Abbie | B103: =IF(RAND()<0.97,"F","N") -> F
A104: Francesca | B104: F
A105: Melissa | B105: F
A106: Katherine | B106: F
A107: Harriet | B107: F
A108: Imogen | B108: F
A109: Jodie | B109: F
A110: Gemma | B110: N
A111: Kayleigh | B111: F
A112: Lily | B112: F
A113: Jennifer | B113: F
A114: Kate | B114: F
A115: Stephanie | B115: F
A116: Daisy | B116: F
A117: Niamh | B117: F
A118: Millie | B118: F
A119: Aimee | B119: F
A120: Kirsty | B120: F
A121: Hollie | B121: F
A122: Rosie | B122: F
A123: Jordan | B123: F
A124: Mollie | B124: F
A125: Alisha | B125: F
A126: Mia | B126: F
A127: Isobel | B127: F
A128: Tia | B128: F
A129: Ellen | B129: F
A130: Erin | B130: F
A131: Bethan | B131: F
A132: Sian | B132: F
A133: Alicia | B133: F
A134: Rhiannon | B134: F
A135: Ashleigh | B135: F
A136: Catherine | B136: F
A137: Madeleine | B137: F
A138: Isabelle | B138: F
A139: Kelsey | B139: F
A140: Sophia | B140: F
A141: Isabella | B141: F
A142: Naomi | B142: F
A143: Yasmin | B143: F
A144: Freya | B144: F
A145: Harper | B145: N
A146: Robyn | B146: F
A147: Isabel | B147: F
A148: Maisie | B148: F
A149: Poppy | B149: F
A150: Rachael | B150: F
A151: Chantelle | B151: F
A152: Chloe | B152: F
A153: Emily | B153: F
A154: Megan | B154: F
A155: Jessica | B155: F
A156: Sophie | B156: F
A157: Charlotte | B157: F
A158: Hannah | B158: F
A159: Lauren | B159: F
A160: Rebecca | B160: F
A161: Lucy | B161: F
A162: Amy | B162: F
A163: Georgia | B163: F
A164: Katie | B164: F
A165: Bethany | B165: F
A166: Emma | B166: F
A167: Olivia | B167: =IF(RAND()<0.97,"F","N") -> F
A168: Courtney | B168: F
A169: Shannon | B169: F
A170: Eleanor | B170: F
A171: Jade | B171: F
A172: Ellie | B172: F
A173: Abigail | B173: F
A174: Holly | B174: F
A175: Molly | B175: F
A176: Laura | B176: F
A177: Alice | B177: F
A178: Sarah | B178: F
A179: Caitlin | B179: F
A180: Rachel | B180: F
A181: Elizabeth | B181: F
A182: Amber | B182: F
A183: Paige | B183: F
A184: Georgina | B184: F
A185: Danielle | B185: F
A186: Grace | B186: F
A187: Nicole | B187: F
A188: Natasha | B188: F
A189: Priya | B189: F
A190: Chelsea | B190: F
A191: Leah | B191: F
A192: Victoria | B192: F
A193: Anna | B193: F
A194: Phoebe | B194: F
A195: Samantha | B195: F
A196: Zoe | B196: F
A197: Alexandra | B197: F
A198: Jasmine | B198: F
A199: Amelia | B199: F
A200: Louise | B200: F
... 1 more rows
